[Event "15. ročník Dobrovický rapid Tereos TTD a.s."]
[Site "Dobrovice, Czech Republic"]
[Date "2020.02.29"]
[Round "5.3"]
[White "Szeko Ludovit"]
[Black "Burdalev Kirill"]
[Result "0-1"]
[TimeControl "15m + 3s / tah"]
[WhiteElo "2051"]
[BlackElo "2334"]

1. e4 {[%clk 00:15:03]} {[%emt 00:00:01]} Nf6 {[%clk 00:15:05]} {[%emt
00:00:01]} 2. e5 {[%clk 00:15:05]} {[%emt 00:00:02]} Nd5 {[%clk 00:15:06]}
{[%emt 00:00:02]} 3. Nc3 {[%clk 00:15:07]} {[%emt 00:00:01]} Nxc3 {[%clk
00:14:59]} {[%emt 00:00:10]} 4. dxc3 {[%clk 00:15:08]} {[%emt 00:00:02]} d6
{[%clk 00:14:40]} {[%emt 00:00:22]} 5. exd6 {[%clk 00:15:10]} {[%emt 00:00:01]}
Qxd6 {[%clk 00:14:40]} {[%emt 00:00:03]} 6. Qxd6 {[%clk 00:15:11]} {[%emt
00:00:02]} cxd6 {[%clk 00:14:42]} {[%emt 00:00:01]} 7. Be3 {[%clk 00:15:10]}
{[%emt 00:00:04]} Nc6 {[%clk 00:14:37]} {[%emt 00:00:08]} 8. O-O-O {[%clk
00:15:11]} {[%emt 00:00:02]} g6 {[%clk 00:14:07]} {[%emt 00:00:33]} 9. Nf3
{[%clk 00:15:10]} {[%emt 00:00:03]} Bg7 {[%clk 00:14:03]} {[%emt 00:00:07]} 10.
h3 {[%clk 00:14:59]} {[%emt 00:00:14]} O-O {[%clk 00:13:57]} {[%emt 00:00:09]}
11. Nd4 {[%clk 00:14:44]} {[%emt 00:00:18]} Bd7 {[%clk 00:13:50]} {[%emt
00:00:10]} 12. Be2 {[%clk 00:14:40]} {[%emt 00:00:07]} Rac8 {[%clk 00:13:06]}
{[%emt 00:00:47]} 13. Rhe1 {[%clk 00:14:42]} {[%emt 00:00:02]} Ne5 {[%clk
00:12:49]} {[%emt 00:00:19]} 14. Nf3 {[%clk 00:14:22]} {[%emt 00:00:23]} Nc6
{[%clk 00:12:29]} {[%emt 00:00:22]} 15. Nd4 {[%clk 00:14:23]} {[%emt 00:00:03]}
a6 {[%clk 00:11:41]} {[%emt 00:00:52]} 16. Bf3 {[%clk 00:14:08]} {[%emt
00:00:18]} b5 {[%clk 00:11:03]} {[%emt 00:00:41]} 17. Nxc6 {[%clk 00:14:09]}
{[%emt 00:00:02]} Bxc6 {[%clk 00:11:04]} {[%emt 00:00:02]} 18. Bxc6 {[%clk
00:14:11]} Rxc6 {[%clk 00:11:07]} {[%emt 00:00:01]} 19. Bd4 {[%clk 00:14:02]}
{[%emt 00:00:11]} e5 {[%clk 00:09:19]} {[%emt 00:01:51]} 20. Be3 {[%clk
00:14:04]} f5 {[%clk 00:09:19]} {[%emt 00:00:03]} 21. f3 {[%clk 00:14:07]} Kf7
{[%clk 00:09:14]} {[%emt 00:00:07]} 22. Re2 {[%clk 00:14:09]} {[%emt 00:00:01]}
Ke6 {[%clk 00:08:50]} {[%emt 00:00:25]} 23. Kb1 {[%clk 00:14:10]} {[%emt
00:00:03]} d5 {[%clk 00:08:36]} {[%emt 00:00:17]} 24. Rde1 {[%clk 00:13:54]}
{[%emt 00:00:20]} e4 {[%clk 00:08:15]} {[%emt 00:00:23]} 25. Bg1 {[%clk
00:13:09]} {[%emt 00:00:48]} Rd8 {[%clk 00:07:24]} {[%emt 00:00:54]} 26. Bf2
{[%clk 00:13:06]} {[%emt 00:00:06]} Rd7 {[%clk 00:07:06]} {[%emt 00:00:21]} 27.
Bg1 {[%clk 00:13:07]} {[%emt 00:00:02]} Kf7 {[%clk 00:06:48]} {[%emt 00:00:21]}
28. Bf2 {[%clk 00:12:27]} {[%emt 00:00:43]} Re6 {[%clk 00:06:39]} {[%emt
00:00:12]} 29. Bc5 {[%clk 00:12:19]} {[%emt 00:00:11]} Be5 {[%clk 00:06:24]}
{[%emt 00:00:18]} 30. g4 {[%clk 00:12:06]} {[%emt 00:00:17]} Bg3 {[%clk
00:06:22]} {[%emt 00:00:04]} 31. Bf2 {[%clk 00:12:02]} {[%emt 00:00:07]} Bxf2
{[%clk 00:05:26]} {[%emt 00:00:59]} 32. Rxf2 {[%clk 00:12:04]} e3 {[%clk
00:05:28]} {[%emt 00:00:01]} 33. Rg2 {[%clk 00:11:48]} {[%emt 00:00:19]} f4
{[%clk 00:05:30]} 34. Kc1 {[%clk 00:11:50]} {[%emt 00:00:02]} d4 {[%clk
00:05:26]} {[%emt 00:00:07]} 35. cxd4 {[%clk 00:11:45]} {[%emt 00:00:08]} Rxd4
{[%clk 00:05:28]} {[%emt 00:00:01]} 36. c3 {[%clk 00:11:17]} {[%emt 00:00:31]}
Rd3 {[%clk 00:05:18]} {[%emt 00:00:13]} 37. Rd1 {[%clk 00:11:00]} {[%emt
00:00:20]} Rxd1+ {[%clk 00:04:55]} {[%emt 00:00:26]} 38. Kxd1 {[%clk 00:11:02]}
{[%emt 00:00:01]} Rd6+ {[%clk 00:04:55]} {[%emt 00:00:03]} 39. Kc2 {[%clk
00:11:01]} {[%emt 00:00:04]} Kf6 {[%clk 00:04:57]} 40. h4 {[%clk 00:11:03]}
{[%emt 00:00:02]} Ke5 {[%clk 00:04:26]} {[%emt 00:00:34]} 41. b3 {[%clk
00:11:02]} {[%emt 00:00:04]} Kd5 {[%clk 00:04:22]} {[%emt 00:00:07]} 42. g5
{[%clk 00:10:40]} {[%emt 00:00:26]} Kc5 {[%clk 00:03:08]} {[%emt 00:01:17]} 43.
Re2 {[%clk 00:09:35]} {[%emt 00:01:07]} Rd5 {[%clk 00:03:00]} {[%emt 00:00:11]}
44. Rg2 {[%clk 00:09:34]} {[%emt 00:00:04]} a5 {[%clk 00:02:38]} {[%emt
00:00:24]} 45. Re2 {[%clk 00:09:36]} {[%emt 00:00:01]} b4 {[%clk 00:02:22]}
{[%emt 00:00:19]} 46. c4 {[%clk 00:09:30]} {[%emt 00:00:09]} Rd7 {[%clk
00:02:06]} {[%emt 00:00:18]} 47. Rg2 {[%clk 00:09:26]} {[%emt 00:00:07]} a4
{[%clk 00:01:53]} {[%emt 00:00:17]} 48. Re2 {[%clk 00:09:19]} {[%emt 00:00:10]}
axb3+ {[%clk 00:01:51]} {[%emt 00:00:04]} 49. axb3 {[%clk 00:09:21]} {[%emt
00:00:01]} Ra7 {[%clk 00:01:50]} {[%emt 00:00:03]} 50. Kd3 {[%clk 00:09:13]}
{[%emt 00:00:11]} Ra3 {[%clk 00:01:25]} {[%emt 00:00:29]} 51. Rb2 {[%clk
00:09:13]} {[%emt 00:00:03]} Ra7 {[%clk 00:00:56]} {[%emt 00:00:31]} 52. Ke4
{[%clk 00:09:05]} {[%emt 00:00:12]} Rd7 {[%clk 00:00:36]} {[%emt 00:00:23]} 53.
Rb1 {[%clk 00:08:12]} {[%emt 00:00:56]} Rd4+ {[%clk 00:00:17]} {[%emt
00:00:21]} 54. Ke5 {[%clk 00:08:09]} {[%emt 00:00:06]} e2 {[%clk 00:00:18]}
{[%emt 00:00:03]} 55. Re1 {[%clk 00:08:08]} {[%emt 00:00:04]} Rd2 {[%clk
00:00:20]} 56. Kxf4 {[%clk 00:08:07]} {[%emt 00:00:05]} Kd4 {[%clk 00:00:23]}
57. c5 {[%clk 00:07:58]} {[%emt 00:00:11]} Kd3 {[%clk 00:00:25]} 58. c6 {[%clk
00:08:00]} {[%emt 00:00:02]} Rc2 {[%clk 00:00:21]} {[%emt 00:00:06]} 59. Kg3
{[%clk 00:07:58]} {[%emt 00:00:05]} Ke3 {[%clk 00:00:19]} {[%emt 00:00:05]} 60.
f4 {[%clk 00:07:54]} {[%emt 00:00:08]} Rxc6 {[%clk 00:00:19]} {[%emt 00:00:03]}
61. h5 {[%clk 00:07:53]} {[%emt 00:00:04]} Rd6 {[%clk 00:00:18]} {[%emt
00:00:04]} 62. hxg6 {[%clk 00:07:53]} {[%emt 00:00:04]} hxg6 {[%clk 00:00:20]}
{[%emt 00:00:01]} 0-1

[Event "15. ročník Dobrovický rapid Tereos TTD a.s."]
[Site "Dobrovice, Czech Republic"]
[Date "2020.02.29"]
[Round "5.4"]
[White "Sorm Daniel"]
[Black "Divis Jaroslav"]
[Result "1-0"]
[TimeControl "15m + 3s / tah"]
[WhiteElo "2310"]
[BlackElo "2029"]

1. d4 {[%clk 00:15:04]} {[%emt 00:00:02]} d5 {[%clk 00:15:05]} {[%emt
00:00:01]} 2. c4 {[%clk 00:15:06]} {[%emt 00:00:02]} c6 {[%clk 00:15:07]}
{[%emt 00:00:01]} 3. Nc3 {[%clk 00:15:06]} {[%emt 00:00:03]} Nf6 {[%clk
00:15:09]} {[%emt 00:00:01]} 4. Nf3 {[%clk 00:15:08]} {[%emt 00:00:01]} e6
{[%clk 00:15:10]} {[%emt 00:00:02]} 5. Qc2 {[%clk 00:15:07]} {[%emt 00:00:03]}
Be7 {[%clk 00:15:08]} {[%emt 00:00:05]} 6. cxd5 {[%clk 00:15:06]} {[%emt
00:00:04]} cxd5 {[%clk 00:14:59]} {[%emt 00:00:12]} 7. Bf4 {[%clk 00:15:01]}
{[%emt 00:00:07]} O-O {[%clk 00:12:27]} {[%emt 00:02:36]} 8. e3 {[%clk
00:15:01]} {[%emt 00:00:03]} Bd7 {[%clk 00:11:36]} {[%emt 00:00:53]} 9. Bd3
{[%clk 00:14:42]} {[%emt 00:00:22]} Nc6 {[%clk 00:11:36]} {[%emt 00:00:04]} 10.
a3 {[%clk 00:14:35]} {[%emt 00:00:10]} a6 {[%clk 00:11:25]} {[%emt 00:00:14]}
11. O-O {[%clk 00:14:07]} {[%emt 00:00:31]} h6 {[%clk 00:11:12]} {[%emt
00:00:16]} 12. h3 {[%clk 00:13:51]} {[%emt 00:00:19]} Rc8 {[%clk 00:10:43]}
{[%emt 00:00:32]} 13. Rac1 {[%clk 00:13:15]} {[%emt 00:00:39]} Qa5 {[%clk
00:10:05]} {[%emt 00:00:41]} 14. Ne5 {[%clk 00:12:11]} {[%emt 00:01:07]} Nxe5
{[%clk 00:09:56]} {[%emt 00:00:12]} 15. dxe5 {[%clk 00:11:57]} {[%emt
00:00:17]} Nh5 {[%clk 00:08:19]} {[%emt 00:01:40]} 16. Bh2 {[%clk 00:11:36]}
{[%emt 00:00:23]} g6 {[%clk 00:08:19]} {[%emt 00:00:03]} 17. Qd2 {[%clk
00:08:59]} {[%emt 00:02:40]} g5 {[%clk 00:06:37]} {[%emt 00:01:45]} 18. Bb1
{[%clk 00:08:07]} {[%emt 00:00:54]} f5 {[%clk 00:05:32]} {[%emt 00:01:09]} 19.
exf6 {[%clk 00:08:00]} {[%emt 00:00:10]} Nxf6 {[%clk 00:05:16]} {[%emt
00:00:19]} 20. Qd3 {[%clk 00:07:34]} {[%emt 00:00:28]} Be8 {[%clk 00:04:58]}
{[%emt 00:00:22]} 21. Nxd5 {[%clk 00:06:30]} {[%emt 00:01:07]} Rd8 {[%clk
00:03:46]} {[%emt 00:01:15]} 22. Nxe7+ {[%clk 00:05:20]} {[%emt 00:01:12]} Kf7
{[%clk 00:03:45]} {[%emt 00:00:04]} 23. Bd6 {[%clk 00:03:13]} {[%emt 00:02:10]}
1-0

[Event "15. ročník Dobrovický rapid Tereos TTD a.s."]
[Site "Dobrovice, Czech Republic"]
[Date "2020.02.29"]
[Round "5.5"]
[White "Hosticka Frantisek"]
[Black "Zemlicka Vit"]
[Result "1-0"]
[TimeControl "15m + 3s / tah"]
[WhiteElo "2106"]
[BlackElo "1915"]

1. e4 {[%clk 00:15:05]} {[%emt 00:10:05]} g6 {[%clk 00:15:04]} {[%emt
00:00:02]} 2. d4 {[%clk 00:15:07]} Bg7 {[%clk 00:15:06]} 3. c3 {[%clk
00:15:09]} d5 {[%clk 00:14:23]} {[%emt 00:00:46]} 4. exd5 {[%clk 00:15:10]}
{[%emt 00:00:02]} Qxd5 {[%clk 00:14:24]} {[%emt 00:00:02]} 5. Nf3 {[%clk
00:15:13]} Nf6 {[%clk 00:13:21]} {[%emt 00:01:05]} 6. Be2 {[%clk 00:15:03]}
{[%emt 00:00:14]} O-O {[%clk 00:13:03]} {[%emt 00:00:21]} 7. O-O {[%clk
00:14:58]} {[%emt 00:00:08]} Qd8 {[%clk 00:12:14]} {[%emt 00:00:52]} 8. Nbd2
{[%clk 00:14:29]} {[%emt 00:00:32]} Bf5 {[%clk 00:10:55]} {[%emt 00:01:22]} 9.
Qb3 {[%clk 00:14:03]} {[%emt 00:00:29]} Qc8 {[%clk 00:10:25]} {[%emt 00:00:32]}
10. Re1 {[%clk 00:13:53]} {[%emt 00:00:13]} Be6 {[%clk 00:09:53]} {[%emt
00:00:35]} 11. Qa3 {[%clk 00:12:36]} {[%emt 00:01:20]} Re8 {[%clk 00:09:26]}
{[%emt 00:00:29]} 12. Nc4 {[%clk 00:11:19]} {[%emt 00:01:19]} Nbd7 {[%clk
00:08:23]} {[%emt 00:01:07]} 13. Ng5 {[%clk 00:10:55]} {[%emt 00:00:29]} Bd5
{[%clk 00:06:58]} {[%emt 00:01:27]} 14. Ne3 {[%clk 00:10:18]} {[%emt 00:00:40]}
Bc6 {[%clk 00:06:50]} {[%emt 00:00:10]} 15. c4 {[%clk 00:07:40]} {[%emt
00:02:42]} e6 {[%clk 00:06:35]} {[%emt 00:00:17]} 16. Nf3 {[%clk 00:07:18]}
{[%emt 00:00:27]} b6 {[%clk 00:06:26]} {[%emt 00:00:11]} 17. b4 {[%clk
00:05:53]} {[%emt 00:01:28]} a5 {[%clk 00:05:40]} {[%emt 00:00:49]} 18. b5
{[%clk 00:05:54]} {[%emt 00:00:02]} Bb7 {[%clk 00:05:42]} 19. Bb2 {[%clk
00:05:36]} {[%emt 00:00:21]} Ne4 {[%clk 00:04:51]} {[%emt 00:00:54]} 20. Qd3
{[%clk 00:05:05]} {[%emt 00:00:34]} Ndf6 {[%clk 00:04:34]} {[%emt 00:00:20]} 21.
Ne5 {[%clk 00:04:52]} {[%emt 00:00:17]} Rd8 {[%clk 00:03:47]} {[%emt 00:00:49]}
22. Qc2 {[%clk 00:04:34]} {[%emt 00:00:21]} Nd6 {[%clk 00:01:50]} {[%emt
00:02:01]} 23. a4 {[%clk 00:02:43]} {[%emt 00:01:54]} Be4 {[%clk 00:01:49]}
{[%emt 00:00:04]} 24. Qb3 {[%clk 00:02:36]} {[%emt 00:00:09]} Nd7 {[%clk
00:01:41]} {[%emt 00:00:10]} 25. Nxd7 {[%clk 00:01:50]} {[%emt 00:00:50]} Qxd7
{[%clk 00:01:32]} {[%emt 00:00:11]} 26. Rad1 {[%clk 00:01:44]} {[%emt
00:00:09]} Qe8 {[%clk 00:01:18]} {[%emt 00:00:17]} 27. c5 {[%clk 00:01:26]}
{[%emt 00:00:21]} Nf5 {[%clk 00:01:01]} {[%emt 00:00:19]} 28. Nxf5 {[%clk
00:01:18]} {[%emt 00:00:12]} gxf5 {[%clk 00:00:56]} {[%emt 00:00:08]} 29. Bc4
{[%clk 00:00:50]} {[%emt 00:00:30]} Qe7 {[%clk 00:00:41]} {[%emt 00:00:17]} 30.
f3 {[%clk 00:00:35]} {[%emt 00:00:19]} Bb7 {[%clk 00:00:08]} {[%emt 00:00:36]}
31. c6 {[%clk 00:00:20]} {[%emt 00:00:18]} Bc8 {[%clk 00:00:09]} {[%emt
00:00:02]} 32. Kh1 {[%clk 00:00:22]} {[%emt 00:00:01]} Qf6 {[%clk 00:00:09]}
{[%emt 00:00:03]} 33. Re2 {[%clk 00:00:21]} {[%emt 00:00:05]} Qg6 {[%clk
00:00:09]} {[%emt 00:00:03]} 34. d5 {[%clk 00:00:19]} {[%emt 00:00:05]} e5
{[%emt 00:00:18]} 35. Bxe5 {[%clk 00:00:07]} {[%emt 00:00:04]} Re8 {[%clk
00:00:01]} {[%emt 00:00:02]} 36. Bxg7 {[%clk 00:00:04]} {[%emt 00:00:02]} Rxe2
{[%clk 00:00:00]} {[%emt 00:00:02]} 37. Bxe2 {[%clk 00:00:04]} 1-0

[Event "15. ročník Dobrovický rapid Tereos TTD a.s."]
[Site "Dobrovice, Czech Republic"]
[Date "2020.02.29"]
[Round "5.6"]
[White "Melich Jindrich"]
[Black "Suran Jan"]
[Result "0-1"]
[TimeControl "15m + 3s / tah"]
[WhiteElo "1952"]
[BlackElo "2335"]

1. b4 {[%clk 00:15:04]} {[%emt 00:00:01]} d5 {[%clk 00:15:03]} {[%emt
00:00:03]} 2. Bb2 {[%clk 00:15:06]} {[%emt 00:00:01]} Nf6 {[%clk 00:15:00]}
{[%emt 00:00:06]} 3. e3 {[%clk 00:15:07]} {[%emt 00:00:02]} e6 {[%clk
00:14:57]} {[%emt 00:00:06]} 4. b5 {[%clk 00:15:05]} {[%emt 00:00:05]} c5
{[%clk 00:14:53]} {[%emt 00:00:08]} 5. c4 {[%clk 00:15:03]} {[%emt 00:00:06]}
Be7 {[%clk 00:14:40]} {[%emt 00:00:16]} 6. Nf3 {[%clk 00:15:01]} {[%emt
00:00:05]} O-O {[%clk 00:14:41]} {[%emt 00:00:01]} 7. Be2 {[%clk 00:14:58]}
{[%emt 00:00:05]} b6 {[%clk 00:14:33]} {[%emt 00:00:12]} 8. O-O {[%clk
00:14:47]} {[%emt 00:00:15]} Bb7 {[%clk 00:14:35]} 9. d3 {[%clk 00:14:38]}
{[%emt 00:00:12]} Nbd7 {[%clk 00:14:29]} {[%emt 00:00:09]} 10. Nbd2 {[%clk
00:14:39]} {[%emt 00:00:02]} Qc7 {[%clk 00:14:24]} {[%emt 00:00:08]} 11. Qc2
{[%clk 00:14:39]} {[%emt 00:00:04]} Rad8 {[%clk 00:14:17]} {[%emt 00:00:10]} 12.
Rfd1 {[%clk 00:14:33]} {[%emt 00:00:08]} Rfe8 {[%clk 00:13:29]} {[%emt
00:00:52]} 13. Rac1 {[%clk 00:13:20]} {[%emt 00:01:17]} Qb8 {[%clk 00:13:16]}
{[%emt 00:00:16]} 14. Qb1 {[%clk 00:12:42]} {[%emt 00:00:41]} Bd6 {[%clk
00:11:37]} {[%emt 00:01:41]} 15. Qa1 {[%clk 00:11:02]} {[%emt 00:01:43]} h6
{[%clk 00:10:52]} {[%emt 00:00:49]} 16. h3 {[%clk 00:10:51]} {[%emt 00:00:14]}
Qa8 {[%clk 00:10:00]} {[%emt 00:00:54]} 17. a4 {[%clk 00:10:37]} {[%emt
00:00:16]} a5 {[%clk 00:09:37]} {[%emt 00:00:26]} 18. bxa6 {[%clk 00:09:35]}
{[%emt 00:01:05]} Bxa6 {[%clk 00:09:29]} {[%emt 00:00:11]} 19. Bc3 {[%clk
00:09:11]} {[%emt 00:00:27]} e5 {[%clk 00:08:50]} {[%emt 00:00:42]} 20. cxd5
{[%clk 00:08:55]} {[%emt 00:00:19]} Nxd5 {[%clk 00:08:52]} {[%emt 00:00:01]} 21.
Nc4 {[%clk 00:08:44]} {[%emt 00:00:13]} Nxc3 {[%clk 00:07:52]} {[%emt
00:01:04]} 22. Qxc3 {[%clk 00:08:19]} {[%emt 00:00:27]} Bc7 {[%clk 00:07:55]}
23. Nfd2 {[%clk 00:07:25]} {[%emt 00:00:58]} Bb7 {[%clk 00:07:36]} {[%emt
00:00:22]} 24. Bf3 {[%clk 00:04:34]} {[%emt 00:02:54]} Bxf3 {[%clk 00:07:31]}
{[%emt 00:00:08]} 25. Nxf3 {[%clk 00:04:32]} {[%emt 00:00:04]} Qxa4 {[%clk
00:07:28]} {[%emt 00:00:07]} 26. Ra1 {[%clk 00:02:50]} {[%emt 00:01:45]} Qc6
{[%clk 00:07:29]} {[%emt 00:00:01]} 27. e4 {[%clk 00:02:39]} {[%emt 00:00:14]}
g6 {[%clk 00:06:54]} {[%emt 00:00:38]} 28. Ra6 {[%clk 00:02:27]} {[%emt
00:00:15]} Re6 {[%clk 00:05:41]} {[%emt 00:01:16]} 29. Rb1 {[%clk 00:01:33]}
{[%emt 00:00:56]} Qb7 {[%clk 00:03:58]} {[%emt 00:01:46]} 30. Qa3 {[%clk
00:01:35]} {[%emt 00:00:02]} Nb8 {[%clk 00:03:28]} {[%emt 00:00:34]} 31. Ra7
{[%clk 00:01:34]} {[%emt 00:00:04]} Qc8 {[%clk 00:03:23]} {[%emt 00:00:08]} 32.
Qb3 {[%clk 00:01:19]} {[%emt 00:00:17]} Nc6 {[%clk 00:03:05]} {[%emt 00:00:22]}
33. Raa1 {[%clk 00:01:12]} {[%emt 00:00:10]} Nb4 {[%clk 00:03:01]} {[%emt
00:00:07]} 34. Rd1 {[%clk 00:01:06]} {[%emt 00:00:10]} Qb7 {[%clk 00:02:48]}
{[%emt 00:00:16]} 35. Qc3 {[%clk 00:00:56]} {[%emt 00:00:12]} Qb8 {[%clk
00:02:38]} {[%emt 00:00:14]} 36. Qc1 {[%clk 00:00:44]} {[%emt 00:00:15]} Kg7
{[%clk 00:02:39]} {[%emt 00:00:02]} 37. Qc3 {[%clk 00:00:46]} Kh7 {[%clk
00:02:41]} {[%emt 00:00:01]} 38. Na3 {[%clk 00:00:22]} {[%emt 00:00:27]} Re7
{[%clk 00:02:32]} {[%emt 00:00:12]} 39. Nb5 {[%clk 00:00:21]} {[%emt 00:00:04]}
Nc6 {[%clk 00:02:07]} {[%emt 00:00:28]} 40. Qc4 {[%clk 00:00:13]} {[%emt
00:00:11]} Kg7 {[%clk 00:02:05]} {[%emt 00:00:05]} 41. Ra3 {[%clk 00:00:12]}
{[%emt 00:00:04]} Red7 {[%clk 00:01:36]} {[%emt 00:00:32]} 42. Ne1 {[%clk
00:00:05]} {[%emt 00:00:10]} Na5 {[%clk 00:01:20]} {[%emt 00:00:19]} 43. Qc2
{[%clk 00:00:00]} {[%emt 00:00:03]} c4 {[%emt 00:00:15]} 44. Nxc7 {[%emt
00:00:14]} Qxc7 {[%emt 00:00:07]} 45. Rc1 cxd3 {[%emt 00:00:03]} 46. Qxc7
{[%emt 00:00:04]} Rxc7 {[%emt 00:00:05]} 47. Nxd3 {[%emt 00:00:03]} 0-1

[Event "15. ročník Dobrovický rapid Tereos TTD a.s."]
[Site "Dobrovice, Czech Republic"]
[Date "2020.02.29"]
[Round "5.7"]
[White "Stursa Jan"]
[Black "Kaderabek Jiri"]
[Result "0-1"]
[TimeControl "15m + 3s / tah"]
[WhiteElo "1943"]
[BlackElo "2105"]

1. c4 {[%clk 00:15:02]} {[%emt 00:00:04]} e5 {[%clk 00:15:03]} {[%emt
00:00:04]} 2. Nc3 {[%clk 00:15:00]} {[%emt 00:00:05]} Nf6 {[%clk 00:15:02]}
{[%emt 00:00:05]} 3. g3 {[%clk 00:14:59]} {[%emt 00:00:03]} Bb4 {[%clk
00:15:01]} {[%emt 00:00:03]} 4. Bg2 {[%clk 00:14:52]} {[%emt 00:00:11]} Bxc3
{[%clk 00:15:01]} {[%emt 00:00:03]} 5. bxc3 {[%clk 00:14:46]} {[%emt 00:00:09]}
O-O {[%clk 00:15:01]} {[%emt 00:00:03]} 6. Nf3 {[%clk 00:14:02]} {[%emt
00:00:46]} Nc6 {[%clk 00:15:00]} {[%emt 00:00:04]} 7. O-O {[%clk 00:13:52]}
{[%emt 00:00:14]} d6 {[%clk 00:14:58]} {[%emt 00:00:04]} 8. h3 {[%clk
00:13:11]} {[%emt 00:00:44]} Be6 {[%clk 00:14:50]} {[%emt 00:00:10]} 9. d3
{[%clk 00:13:09]} {[%emt 00:00:06]} a6 {[%clk 00:14:49]} {[%emt 00:00:04]} 10.
Ng5 {[%clk 00:12:25]} {[%emt 00:00:47]} Bd7 {[%clk 00:14:29]} {[%emt 00:00:23]}
11. Rb1 {[%clk 00:12:12]} {[%emt 00:00:16]} h6 {[%clk 00:14:22]} {[%emt
00:00:11]} 12. Ne4 {[%clk 00:12:07]} {[%emt 00:00:08]} Nxe4 {[%clk 00:14:20]}
{[%emt 00:00:04]} 13. dxe4 {[%clk 00:10:57]} {[%emt 00:01:14]} b6 {[%clk
00:14:16]} {[%emt 00:00:07]} 14. Kh2 {[%clk 00:10:44]} {[%emt 00:00:17]} Be6
{[%clk 00:14:02]} {[%emt 00:00:16]} 15. Qd3 {[%clk 00:09:47]} {[%emt 00:01:01]}
Na5 {[%clk 00:13:42]} {[%emt 00:00:21]} 16. Rb4 {[%clk 00:09:41]} {[%emt
00:00:11]} c5 {[%clk 00:13:14]} {[%emt 00:00:32]} 17. Rb2 {[%clk 00:08:40]}
{[%emt 00:01:05]} Nxc4 {[%clk 00:12:23]} {[%emt 00:00:53]} 18. Rc2 {[%clk
00:08:41]} {[%emt 00:00:02]} b5 {[%clk 00:12:12]} {[%emt 00:00:12]} 19. f4
{[%clk 00:08:21]} {[%emt 00:00:25]} f6 {[%clk 00:12:08]} {[%emt 00:00:07]} 20.
e3 {[%clk 00:06:00]} {[%emt 00:02:24]} Qe7 {[%clk 00:12:01]} {[%emt 00:00:09]}
21. g4 {[%clk 00:05:54]} {[%emt 00:00:10]} Rad8 {[%clk 00:11:34]} {[%emt
00:00:30]} 22. Rd1 {[%clk 00:05:41]} {[%emt 00:00:17]} Rd7 {[%clk 00:11:03]}
{[%emt 00:00:34]} 23. Qe2 {[%clk 00:04:56]} {[%emt 00:00:47]} Rfd8 {[%clk
00:10:57]} {[%emt 00:00:08]} 24. Rd5 {[%clk 00:04:21]} {[%emt 00:00:39]} Bxd5
{[%clk 00:10:10]} {[%emt 00:00:50]} 25. exd5 {[%clk 00:04:23]} {[%emt
00:00:01]} e4 {[%clk 00:10:01]} {[%emt 00:00:11]} 26. Qd1 {[%clk 00:03:59]}
{[%emt 00:00:28]} Re8 {[%clk 00:09:54]} {[%emt 00:00:09]} 27. Bf1 {[%clk
00:03:58]} {[%emt 00:00:05]} Nb6 {[%clk 00:09:33]} {[%emt 00:00:23]} 28. Rg2
{[%clk 00:03:48]} {[%emt 00:00:13]} g5 {[%clk 00:09:04]} {[%emt 00:00:32]} 29.
fxg5 {[%clk 00:02:56]} {[%emt 00:00:55]} fxg5 {[%clk 00:09:03]} {[%emt
00:00:04]} 30. c4 {[%clk 00:02:45]} {[%emt 00:00:15]} Qe5+ {[%clk 00:08:25]}
{[%emt 00:00:40]} 31. Kh1 {[%clk 00:02:42]} {[%emt 00:00:06]} bxc4 {[%clk
00:08:27]} {[%emt 00:00:01]} 32. Bb2 {[%clk 00:02:02]} {[%emt 00:00:42]} c3
{[%clk 00:08:28]} {[%emt 00:00:02]} 33. Ba1 {[%clk 00:02:05]} Rf7 {[%clk
00:08:00]} {[%emt 00:00:30]} 34. Bxa6 {[%clk 00:01:57]} {[%emt 00:00:12]} c4
{[%clk 00:07:21]} {[%emt 00:00:42]} 35. Qc2 {[%clk 00:01:02]} {[%emt 00:00:58]}
Ref8 {[%clk 00:07:05]} {[%emt 00:00:19]} 36. Bxc3 {[%clk 00:00:53]} {[%emt
00:00:13]} Rf1+ {[%clk 00:07:01]} {[%emt 00:00:08]} 37. Rg1 {[%clk 00:00:55]}
Rxg1+ {[%clk 00:06:40]} {[%emt 00:00:25]} 38. Kxg1 {[%clk 00:00:57]} {[%emt
00:00:01]} Qg3+ {[%clk 00:06:41]} {[%emt 00:00:01]} 39. Qg2 {[%clk 00:00:59]}
{[%emt 00:00:02]} Qxe3+ {[%clk 00:06:39]} {[%emt 00:00:05]} 0-1